Cogmind - Beta 13 @@@ ROGUE MODE // 2024.04.04 @ 23:52:19 Player: Essnato Result: Destroyed by G-34 Mercenary with Small Laser Performance ------------- Evolutions (1) 500 Regions Visited (4) 800 Robots Destroyed (40) 200 Value Destroyed (1279) 1279 Prototype IDs (3) 60 Alien Tech Used (0) 0 Bonus (131) 131 TOTAL SCORE: 2970 Bonus ------- Follower Combat Kills 131 Cogmind --------- Core Integrity 0/400 Matter 300/300 Energy 98/100 System Corruption 5% Temperature Cool (6) Movement Core (50) Location -9/Mines Parts ------- > --- POWER (1) -------- (None) > --- PROPULSION (2) --- (None) > --- UTILITY (4) ------ (None) > --- WEAPON (2) ------- (None) > --- INVENTORY (5) ---- Improved Ion Engine Aluminum Leg Improved Heat Sink Experimental Sensor Array Rocket Launcher Peak State ------------ > --- POWER ------------ Cooled Ion Engine > --- PROPULSION ------- Aluminum Leg Improved Aluminum Leg > --- UTILITY ---------- Improved Heat Sink Medium Storage Unit Experimental Sensor Array Medium Armor Plating > --- WEAPON ----------- Improved Medium Laser Improved Medium Laser > --- INVENTORY -------- Improved Ion Engine Improved Ion Engine Light Nuclear Core Light Nuclear Core Aluminum Leg Improved Heat Sink Sensor Array Light Armor Plating Beam Cannon Rocket Launcher [Rating: 28] Favorites ----------- Power Cooled Ion Engine Engine Cooled Ion Engine Power Core Light Nuclear Core Propulsion Aluminum Leg Leg Aluminum Leg Utility Medium Storage Unit Device Improved Heat Sink Storage Medium Storage Unit Protection Light Armor Plating Weapon Improved Medium Laser Energy Gun Improved Medium Laser Energy Cannon Beam Cannon Ballistic Gun Heavy Assault Rifle Special Weapon Mining Laser Build | -11 -10 -10 -9 -9 ------- Run | Yrd Mat Min Mat Min Slots Evolved 2 | . . . 2 . Power . | . . . . . Propulsion . | . . . . . Utility 2 | . . . 2 . Weapon . | . . . . . Parts Attached 53 | 6 8 16 23 . Power 6 | 1 1 3 1 . Engine 5 | 1 1 2 1 . Core 1 | . . 1 . . Reactor . | . . . . . Propulsion 8 | 2 . 4 2 . Treads . | . . . . . Leg 8 | 2 . 4 2 . Wheel . | . . . . . Hover . | . . . . . Flight . | . . . . . Utility 26 | 1 3 4 18 . Device 13 | . 1 4 8 . Storage 2 | 1 1 . . . Processor . | . . . . . Hackware . | . . . . . Protection 11 | . 1 . 10 . Artifact . | . . . . . Weapon 13 | 2 4 5 2 . Energy Gun 10 | 2 4 2 2 . Energy Cannon 1 | . . 1 . . Ballistic Gun 1 | . . 1 . . Ballistic Cannon . | . . . . . Launcher . | . . . . . Special Weapon 1 | . . 1 . . Impact Weapon . | . . . . . Slashing Weapon . | . . . . . Piercing Weapon . | . . . . . Special Melee Weapon . | . . . . . Unidentified Prototypes 3 | . . . 3 . Parts Lost 12 | . . 10 2 . Power 2 | . . 2 . . Propulsion 3 | . . 3 . . Utility 3 | . . 1 2 . Weapon 4 | . . 4 . . Highest Loss Streak 5 | . . 5 1 . To Critical Strikes . | . . . . . Average Slot Usage (%) 94 | . 94 94 98 53 Engine 9 | . 14 6 8 5 Core 3 | . . 7 2 . Leg 24 | . 28 27 22 11 Device 13 | . 8 14 15 11 Storage 12 | . 14 14 11 5 Protection 8 | . 1 . 15 5 Energy Gun 17 | . 27 7 19 11 Energy Cannon 3 | . . 8 2 . Ballistic Gun 1 | . . 7 . . Naked Turns 69 | . . . . 69 Heaviest Build 35 | 12 21 22 35 33 Greatest Support 23 | 20 20 20 23 23 Greatest Overweight (x) 6 | . 1 6 1 1 Average Overweight (x) . | . . . 1 . Largest Inventory Capacity 10 | 8 10 10 10 10 Average Capacity 9 | 6 9 10 10 7 Most Carried 10 | 1 10 10 10 10 Average Carried 8 | . 6 9 9 7 Final Capacity 10 | 8 10 10 10 5 Final Carried 10 | 1 10 10 10 5 Class Distribution -------------------- 73% | Mutant 26% | Scavenger-Mutant Dominant Class ---------------- Mutant | -10/Materials Scavenger-Mutant | -10/Mines Mutant | -9/Materials Mutant | -9/Mines Resources | -11 -10 -10 -9 -9 ----------- Run | Yrd Mat Min Mat Min Matter Collected 804 | 251 149 179 225 . Remotely . | . . . . . Salvage Created 1496 | . 336 264 896 . Parts 85 | . 26 19 40 . Haulers Intercepted 1 | . . . 1 . Recyclers Shooed 2 | . 1 . 1 . Parts Field Recycled . | . . . . . Retrieved Matter . | . . . . . Parts Self-Destructed . | . . . . . Prevented . | . . . . . Kills | -11 -10 -10 -9 -9 ------- Run | Yrd Mat Min Mat Min Combat Hostiles Destroyed 33 | . 10 5 18 . Guns 23 | . 9 1 13 . Cannons 8 | . . 3 5 . Classes Destroyed 8 | . 3 2 3 . Worker 1 | . . 1 . . Hauler 1 | . . . 1 . Watcher 5 | . 2 . 3 . Swarmer 3 | . 3 . . . Grunt 22 | . 7 4 11 . Brawler 1 | . . . 1 . Duelist 1 | . . . 1 . Sentry 6 | . . 1 5 . Best Kill Streak 6 | . 6 2 4 . Combat Bots Only 5 | . 5 2 3 . Max Kills in Single Turn 2 | . 1 1 2 . Gunslinging 1 | . . . 1 . Exploded . | . . . . . Melee . | . . . . . Uniques/NPCs Destroyed . | . . . . . Combat | -11 -10 -10 -9 -9 -------- Run | Yrd Mat Min Mat Min Hostile Shots Fired 238 | . 56 83 72 27 Missed 72 | . 15 24 21 12 Damage Taken 2164 | . 431 806 678 249 Core 625 | . 95 127 164 239 Absorbed by Shields . | . . . . . Core Remaining (%) 55 | 100 . 11 . . Volleys Fired 130 | . 49 30 51 . Largest 2 | . 2 2 2 . Hottest 125 | . 100 100 125 . Shots Fired 242 | . 100 39 103 . Gun 206 | . 100 20 86 . Cannon 36 | . . 19 17 . Launcher . | . . . . . Special . | . . . . . Kinetic . | . . . . . Thermal 242 | . 100 39 103 . Explosive . | . . . . . Electromagnetic . | . . . . . Robot Hit Streak 19 | . 13 6 19 . Robot Miss Streak 8 | . 8 4 2 . Penetration Max . | . . . . . Secondary Targets 1 | . . . 1 . Max Gunslinging Chain 1 | . . . 1 . Shots Hit Robots 153 | . 56 24 73 . Core Hits 65 | . 24 10 31 . Critical Kills 1 | . . . 1 . Critical Parts Destroyed . | . . . . . Critical Strikes 15 | . 3 . 12 . Burn 14 | . 3 . 11 . Meltdown 1 | . . . 1 . Melee Attacks . | . . . . . Impact . | . . . . . Slashing . | . . . . . Piercing . | . . . . . Sneak Attacks . | . . . . . Combat Hostiles . | . . . . . Follow-up Attacks . | . . . . . Damage Inflicted 2413 | . 725 390 1296 2 Guns 1906 | . 701 159 1046 . Cannons 460 | . . 226 234 . Explosions . | . . . . . Melee . | . . . . . Ramming 47 | . 24 5 16 2 Kinetic . | . . . . . Thermal 2366 | . 701 385 1280 . Explosive . | . . . . . Electromagnetic . | . . . . . Impact . | . . . . . Slashing . | . . . . . Piercing . | . . . . . Highest Corruption 5 | . 4 4 5 5 Average Corruption 4 | . 3 4 4 5 Corruption Purged . | . . . . . Corruption Blocked . | . . . . . Effects 45 | . 7 22 14 2 Message Errors 11 | . 1 7 3 . Matter Fused 11 | . 2 8 1 . Heat Flow Errors 6 | . 1 1 4 . Energy Discharges 3 | . . 1 2 . Parts Rejected 2 | . . 1 . 1 Data Loss (minor) 5 | . 1 2 1 1 Data Loss (major) 3 | . . 2 1 . Misfires 3 | . 2 . 1 . Alerts 1 | . . . 1 . Overload Shots . | . . . . . Overflow Damage 4 | . . . 4 . Projectiles 4 | . . . 4 . Explosions . | . . . . . Melee . | . . . . . Knockbacks . | . . . . . Impact . | . . . . . Kinetic . | . . . . . Secondary . | . . . . . Self-Inflicted Damage . | . . . . . Shots . | . . . . . Rammed . | . . . . . Targets Rammed 15 | . 3 3 8 1 Kicked 15 | . 3 3 8 1 Crushed . | . . . . . Highest Temperature 416 | . 416 395 306 . Average Temperature 92 | . 104 135 55 . Received Heat Transfer 1027 | . 180 480 321 46 Effects 7 | . 3 3 1 . Shutdowns 2 | . 1 1 . . Energy Bleed 2 | . . 2 . . Interference 1 | . 1 . . . Matter Decay 1 | . 1 . . . Short Circuit 1 | . . . 1 . Siege Activations . | . . . . . Robots Corrupted . | . . . . . Combat Hostiles . | . . . . . Parts Fried . | . . . . . Impact Corruptions . | . . . . . Robots Melted 3 | . 1 1 1 . Combat Hostiles 2 | . 1 1 . . Parts Melted 19 | . 5 1 13 . Heat Transferred 6478 | . 2000 926 3552 . Parts Sabotaged . | . . . . . Parts Stolen . | . . . . . Parts Stripped . | . . . . . Power Chain Reactions . | . . . . . Alert | -11 -10 -10 -9 -9 ------- Run | Yrd Mat Min Mat Min Peak Influence 214 | . 177 214 201 37 Initial 69 | . . 69 22 37 Average 83 | . 96 95 79 37 Maximum Alert Level 1 | . . 1 1 . Low Security (%) 99 | 100 100 98 98 100 Level 1 . | . . 1 1 . Level 2 . | . . . . . Level 3 . | . . . . . Level 4 . | . . . . . Level 5 . | . . . . . High Security . | . . . . . Max Security . | . . . . . Squads Dispatched 9 | . 4 . 5 . Investigation 7 | . 2 . 5 . Extermination . | . . . . . Reinforcement 2 | . 2 . . . Assault . | . . . . . Garrison . | . . . . . Intercept . | . . . . . Searches Triggered . | . . . . . Construction Impeded . | . . . . . Haulers Reinforced . | . . . . . Active Scanning Responses . | . . . . . Cargo Convoy Interrupts . | . . . . . Stealth | -11 -10 -10 -9 -9 --------- Run | Yrd Mat Min Mat Min Distress Signals 4 | . 1 . 3 . Communications Jammed . | . . . . . Distress Signals . | . . . . . Times Spotted 85 | . 24 15 28 18 Peak Tracking Total 15 | . 4 3 5 15 Tactical Retreats 7 | . . 4 3 . Traps | -11 -10 -10 -9 -9 ------- Run | Yrd Mat Min Mat Min Traps Triggered 6 | . 2 . 4 . Indirectly . | . . . . . Trap Hack Attempts . | . . . . . Triggered . | . . . . . Disarmed . | . . . . . Reprogrammed . | . . . . . Reused . | . . . . . Traps Extracted . | . . . . . Installed . | . . . . . Triggered . | . . . . . Machines | -11 -10 -10 -9 -9 ---------- Run | Yrd Mat Min Mat Min Machines Disabled . | . . . . . Max in Single Turn . | . . . . . Machines Repaired . | . . . . . Machines Dismantled . | . . . . . Machines Sabotaged . | . . . . . Overloaded Fab Kills . | . . . . . Hacking | -11 -10 -10 -9 -9 --------- Run | Yrd Mat Min Mat Min Machines Accessed 8 | . 3 . 5 . Terminals 8 | . 3 . 5 . Fabricators . | . . . . . Repair Stations . | . . . . . Recycling Units . | . . . . . Scanalyzers . | . . . . . Garrison Access . | . . . . . Total Hacks 24 | . 11 . 13 . Successful 2 | . . . 2 . Failed 22 | . 11 . 11 . Catastrophic 10 | . 5 . 5 . Database Lockouts . | . . . . . Manual 18 | . 6 . 12 . Terminals 24 | . 11 . 13 . Fabricators . | . . . . . Repair Stations . | . . . . . Recycling Units . | . . . . . Scanalyzers . | . . . . . Garrison Access . | . . . . . Terminal Hacks 2 | . . . 2 . Robot Analysis 1 | . . . 1 . Alert Level 1 | . . . 1 . Fabricator Hacks . | . . . . . Repair Station Hacks . | . . . . . Recycling Unit Hacks . | . . . . . Scanalyzer . | . . . . . Garrison Access Hacks . | . . . . . Unauthorized Hacks . | . . . . . Terminals . | . . . . . Fabricators . | . . . . . Repair Stations . | . . . . . Recycling Units . | . . . . . Scanalyzers . | . . . . . Garrison Access . | . . . . . Data Cores Recovered . | . . . . . Used . | . . . . . Hacking Detections 8 | . 3 . 5 . Full Trace Events 8 | . 3 . 5 . Feedback Events . | . . . . . Feedback Blocked . | . . . . . Robot Schematics Acquired . | . . . . . Robots Built . | . . . . . Authchips . | . . . . . Time . | . . . . . Total Robot Build Rating . | . . . . . Part Schematics Acquired . | . . . . . Parts Built . | . . . . . Authchips . | . . . . . Time . | . . . . . Total Part Build Rating . | . . . . . Parts Repaired . | . . . . . Time . | . . . . . Parts Recycled . | . . . . . Recycled Matter . | . . . . . Retrieved Matter . | . . . . . Retrieved Components . | . . . . . Parts Scanalyzed . | . . . . . Part Schematics Acquired . | . . . . . Parts Damaged . | . . . . . Bothacking | -11 -10 -10 -9 -9 ------------ Run | Yrd Mat Min Mat Min Used RIF Installer . | . . . . . Robots Hacked . | . . . . . Non-combat . | . . . . . Combat . | . . . . . Robot Hacks Applied . | . . . . . Relay Couplers Released . | . . . . . Fabnet Peak Effective % . | . . . . . Robots Rewired . | . . . . . Allies Hacked . | . . . . . Hacks Repelled . | . . . . . Allies | -11 -10 -10 -9 -9 -------- Run | Yrd Mat Min Mat Min Total Allies 3 | . . 3 . . Largest Group 3 | . . 3 3 . Highest-Rated Group 40 | . . 40 40 . Highest-Rated Ally 16 | . . 16 16 . Total Orders . | . . . . . Ally Attacks 35 | . . 15 20 . Total Damage 344 | . . 154 190 . Kills 7 | . . 5 2 . Allies Corrupted . | . . . . . Allies Melted . | . . . . . Intel | -11 -10 -10 -9 -9 ------- Run | Yrd Mat Min Mat Min Robot Analysis Total 1 | . . . 1 . Derelict Logs Recovered 1 | . . 1 . . Drone Launches . | . . . . . Drone Recoveries . | . . . . . Exploration | -11 -10 -10 -9 -9 ------------- Run | Yrd Mat Min Mat Min Turns Passed 3644 | 61 752 893 1792 146 Spaces Moved 1913 | 45 435 496 762 175 Core 141 | 3 . 1 . 137 Treads . | . . . . . Legs 1772 | 42 435 495 762 38 Wheels . | . . . . . Hover . | . . . . . Flight . | . . . . . Fastest Speed 50 | 50 120 120 190 50 Average Speed 153 | 115 123 153 190 80 Slowest Speed 350 | 120 190 350 190 190 Overloaded Moves . | . . . . . Propulsion Burnouts . | . . . . . Robots Hopped . | . . . . . Cave-ins Triggered . | . . . . . Exploration Rate (%) 52 | 4 69 90 55 46 Regions Visited 4 Branch Regions 2 Pre-discovered Areas . | . . . . . Known Exits Taken . | . . . . . Unknown Exits Taken 4 | 1 1 1 1 . Scrap Searched . | . . . . . Spaces Dug . | . . . . . Terrain Destroyed . | . . . . . Melee . | . . . . . Projectile . | . . . . . AOE . | . . . . . Terrain Rammed . | . . . . . Walls Destroyed . | . . . . . Machines Disabled . | . . . . . Actions | -11 -10 -10 -9 -9 --------- Run | Yrd Mat Min Mat Min Total 2366 | 51 552 587 996 180 Wait 202 | . 40 28 132 2 Move 1909 | 44 434 495 761 175 Hop . | . . . . . Pick Up 32 | 1 11 11 8 1 Fast Attach 21 | 6 5 4 6 . Attach 14 | . . 9 5 . Detach 4 | . 1 . 3 . Swap 18 | . 3 3 12 . Drop 21 | . 6 4 10 1 Fire 130 | . 49 30 51 . Melee . | . . . . . Ram . | . . . . . Kick 15 | . 3 3 8 1 Crush . | . . . . . Escape Stasis . | . . . . . Rewire . | . . . . . Trap . | . . . . . Miscellaneous . | . . . . . Route ------- -11/Scrapyard -10/Materials (discovered 2 exits: *Mat / [*Min]) -10/Mines -9/Materials (discovered 2 exits: [*Mat] / [*Min]) -9/Mines History --------- Turn | Location | Event 20 | -11/Scrapyard | Discovered new exit (range 15) 62 | -11/Scrapyard | Entered Materials 140 | -10/Materials | Discovered new exit (range 16) 318 | -10/Materials | Build established: Mutant 600 | -10/Materials | Discovered new exit (range 8) 814 | -10/Materials | Entered Mines 849 | -10/Mines | Learned Materials emergency access door positions 911 | -10/Mines | Core integrity fell below 50% 936 | -10/Mines | Lost 3 parts (1p1n1w) 1201 | -10/Mines | Core integrity fell below 20% 1234 | -10/Mines | Lost 5 parts (1p2n1u1w) 1305 | -10/Mines | Found a damaged Exp. Sensor Array with a note attached 1309 | -10/Mines | Found Prototype Device 1336 | -10/Mines | Assisted by bots powering up and referring to "LRC-V3" 1505 | -10/Mines | Build established: Scavenger-Mutant 1629 | -10/Mines | Discovered new exit (range 11) 1663 | -10/Mines | Received a Rocket Launcher from a helpful Derelict 1707 | -10/Mines | Entered Materials 1707 | -9/Materials | Accompanied by 3 allies 1707 | -9/Materials | Evolved 2 slots: Utility x2 1971 | -9/Materials | Lost 3 allies 2394 | -9/Materials | Build established: Mutant 2422 | -9/Materials | Identified Exp. Sensor Array 2900 | -9/Materials | Discovered new exit (range 4) 3458 | -9/Materials | Discovered new exit (range 16) 3499 | -9/Materials | Entered Mines 3554 | -9/Mines | Assembled infested the area 3559 | -9/Mines | Assisted by a Guerilla fighting off Assembled 3576 | -9/Mines | Released all parts (8) 3578 | -9/Mines | Core integrity fell below 50% 3619 | -9/Mines | Core integrity fell below 20% 3645 | -9/Mines | Destroyed by G-34 Mercenary with Small Laser Last Messages --------------- as-23880 destroyed. as-40722 destroyed. as-13163 destroyed. U-05 Engineer lays Concrete. K-01 Serf collects debris. U-05 Engineer lays Concrete. as-73589 destroyed. The unstable cave ceiling collapses. R-06 Scavenger collects Sml. Storage Unit. U-05 Engineer lays Concrete. as-08366 destroyed. U-05 Engineer lays Concrete. G-34 Mercenary destroyed. U-05 Engineer lays Concrete. K-01 Serf collects debris. U-05 Engineer lays Concrete. The unstable cave ceiling collapses. C-30 ARC bursts open, deploying its payload. S-10 Pest unfolds itself. K-01 Serf collects debris. Map ----- +----------------------------------------------------+ | ?????????????????????????????????????????????????? | | ?????????????????????????????????????????????????? | | ?????????????????????????????????????????????????? | | ?????????????????????????????????????????????????? | | ????###??????????????????????????????????????????? | | ???## ##???????#####?????????????????????????????? | | ???# #?####?## ##????????????????????????????? | | ???# ### ### # ##???????????????????????????? | | #### ## ### ####????????????????????????? | | ## " # ##???????????????????????? | | %* ##??????????????????????? | | k ##?????????????????????? | | %% ##????????????????????? | | % %%[ % ##???????????????????? | | ##??????????????????? | | ## #??????????????????? | | ?# % ### # #??????????????????? | | ?# ## ####?# # #??????????????????? | | # ###??????# ### l ##??????????????????? | | ##????????#####?# g % ##???????????????????? | | ####???????????????# # ###### #?????????????? | | #???????????????????### #?????????????? | | ??????????????????????# % ########?????????????? | | ????????????????######### #######???????????? | | ????????????????# % ????????? | | ????????###?????# ss @ ########??????????? | | ???????## ###### s####### #####?????????????????? | | ???????# #?????###?????????????????????? | | ???????# ########?????????????????????????????? | | ???????# #????????????????????????????????????? | | ??????# ##????????????????????????????????????? | | ????? #??????????????????????????????????????? | | ???#% ???????????????????????????????????????? | | ?? " ???????????????????????????????????????? | | ????????????????????????????????????????? | | #????????????????????????????????????????? | | ?????????????????????????????????????????? | | ?????????????????????????????????????????? | | ### ??????????????????????????????????????????? | | ????###??????????????????????????????????????????? | | ?????????????????????????????????????????????????? | | ?????????????????????????????????????????????????? | | ?????????????????????????????????????????????????? | | ?????????????????????????????????????????????????? | | ?????????????????????????????????????????????????? | | ?????????????????????????????????????????????????? | | ?????????????????????????????????????????????????? | | | | | | | +----------------------------------------------------+ Best States ------------- Heat Dissipation 42 Energy Generation 14 Energy Capacity 280 Matter Stores 300 Matter Capacity 300 Sight Range 16 Robot Scan Range 20 Terrain Scan Density 10 Armor Coverage 375 Evasion (%) 55 Item Schematics ----------------- None Robot Schematics ------------------ None Fabricated ------------ Nothing Alien Tech Used ----------------- None Achievements -------------- None Challenges ------------ None Game ------ Seed DimensionalScanTube Manual? 0 Play Time 00:31:53 Cumulative 7.7 hours Start 2024.04.04 @ 23:21:04 End 2024.04.04 @ 23:52:19 Sessions 1 Manual Loads 0 Difficulty Rogue Special Mode None Game No. 8 Rogue 8 Adventurer 0 Explorer 0 Win Type - Total 0 Types 0/0/0/0/0/0/0/0/0 Lore% 5 Gallery% 15 Achievement% 16 Wizard Run 0 Options --------- Layout 0 ASCII 0 Keyboard 0 Movement Mouse Keybinds 0 Fullscreen 1 Font 18/SmallcapsGlow Map View 38x25 Zoom Use 88% Tactical HUD 0 Map Filters NONE Filters NONE Steam 1 RUN: 3e9d7e49-31d9-438d-8945-86fb4a28a324